fUSD/lending_fUSD_20250502
["ID","MTS","AMOUNT","RATE_DAILY","PERIOD"]
[359656853,1746225043313,-450.0,0.0001971,2]
[359656854,1746225043323,-450.0,0.0001971,2]
[359656855,1746225043333,-450.0,0.0001971,2]
[359656857,1746225043343,-450.0,0.0001971,2]
[359656859,1746225043353,-450.0,0.0001971,2]
[359656861,1746225043363,-450.0,0.0001971,2]
[359656862,1746225043373,-450.0,0.0001971,2]
[359656863,1746225043383,-479.878237,0.0001971,2]
[359656864,1746225043391,-521.82,0.0001971,2]
[359656865,1746225043401,-450.0,0.0001971,2]
[359656866,1746225043411,-450.0,0.0001971,2]
[359656867,1746225043420,-450.0,0.0001971,2]
[359656868,1746225043431,-450.0,0.0001971,2]
[359656869,1746225043440,-508.35,0.0001971,2]
[359656870,1746225043450,-450.0,0.0001971,2]
[359656872,1746225043463,-450.0,0.0001971,2]
[359656873,1746225043472,-450.0,0.0001971,2]
[359656874,1746225043482,-450.0,0.0001971,2]
[359656875,1746225043492,-450.0,0.0001971,2]
[359656876,1746225043502,-822.49,0.0001971,2]
[359656877,1746225043512,-450.0,0.0001971,2]
[359656878,1746225043521,-565.62,0.0001971,2]
[359656879,1746225043530,-450.0,0.0001971,2]
[359656880,1746225043540,-765.62,0.0001971,2]
[359656881,1746225043550,-450.0,0.0001971,2]
[359656882,1746225043559,-503.39,0.0001971,2]
[359656883,1746225043569,-949.34,0.0001971,2]
[359656884,1746225043578,-450.0,0.0001971,2]
[359656885,1746225043587,-450.0,0.0001971,2]
[359656886,1746225043597,-787.52,0.0001971,2]
[359656887,1746225043606,-489.72,0.0001971,2]
[359656888,1746225043615,-1000.16,0.0001971,2]
[359656889,1746225043624,-3655.2,0.0001971,2]
[359656890,1746225043633,-472.43,0.0001971,2]
[359656891,1746225043643,-580.69,0.0001971,2]
[359656892,1746225043652,-450.0,0.0001971,2]
[359656893,1746225043666,-450.0,0.0001971,2]
[359656894,1746225043675,-450.0,0.0001971,2]
[359656895,1746225043686,-524.34,0.0001971,2]
[359656896,1746225043696,-450.0,0.0001971,2]
[359656897,1746225043706,-450.0,0.0001971,2]
[359656898,1746225043716,-589.01,0.0001971,2]
[359656899,1746225043726,-450.0,0.0001971,2]
[359656900,1746225043735,-4547.24,0.0001971,2]
[359656901,1746225043745,-450.0,0.0001971,2]
[359656902,1746225043755,-237.0578191,0.0001971,2]
[359656903,1746225043765,-490.67,0.0001971,2]
[359656904,1746225043774,-450.0,0.0001971,2]
[359656905,1746225043784,-4052.13,0.0001971,2]
[359656906,1746225043794,-450.0,0.0001971,2]
[359656907,1746225043803,-463.09,0.0001971,2]
[359656908,1746225043816,-970.8,0.0001971,2]
[359656909,1746225043826,-450.0,0.0001971,2]
[359656910,1746225043835,-5829.53,0.0001971,2]
[359656911,1746225043844,-1054.48,0.0001971,2]
[359656912,1746225043854,-450.0,0.0001971,2]
[359656913,1746225043864,-473.37,0.0001971,2]
[359656914,1746225043874,-450.0,0.0001971,2]
[359656915,1746225043883,-450.0,0.0001971,2]
[359656916,1746225043893,-544.79,0.0001971,2]
[359656917,1746225043903,-450.0,0.0001971,2]
[359656918,1746225043912,-450.0,0.0001971,2]
[359656919,1746225043922,-450.0,0.0001971,2]
[359656920,1746225043931,-300.0,0.0001971,2]
[359656921,1746225043941,-450.0,0.0001971,2]
[359656922,1746225043951,-450.0,0.0001971,2]
[359656923,1746225043961,-650.05,0.0001971,2]
[359656925,1746225043971,-450.0,0.0001971,2]
[359656926,1746225043981,-488.59,0.0001971,2]
[359656927,1746225043991,-452.44,0.0001971,2]
[359656929,1746225044001,-531.42,0.0001971,2]
[359656931,1746225044011,-578.14,0.0001971,2]
[359656933,1746225044021,-4544.5,0.0001971,2]
[359656935,1746225044030,-450.0,0.0001971,2]
[359656936,1746225044040,-953.42,0.0001971,2]
[359656937,1746225044049,-450.0,0.0001971,2]
[359656938,1746225044059,-92040.51,0.0001971,2]
[359656939,1746225044069,-109358.47,0.0001971,2]
[359656941,1746225044079,-541.01,0.0001971,2]
[359656943,1746225044088,-766.73,0.0001971,2]
[359656945,1746225044098,-577.33,0.0001971,2]
[359656947,1746225044107,-5393.24,0.0001971,2]
[359656949,1746225044116,-450.0,0.0001971,2]
[359656951,1746225044125,-450.0,0.0001971,2]
[359656953,1746225044135,-450.0,0.0001971,2]
[359656955,1746225044144,-599.74,0.0001971,2]
[359656957,1746225044153,-450.0,0.0001971,2]
[359656959,1746225044163,-450.0,0.0001971,2]
[359656961,1746225044172,-842.01,0.0001971,2]
[359656963,1746225044182,-450.0,0.0001971,2]
[359656965,1746225044191,-29837.17,0.0001971,2]
[359656967,1746225044200,-450.0,0.0001971,2]
[359656969,1746225044210,-695.89,0.0001971,2]
[359656971,1746225044219,-450.0,0.0001971,2]
[359656973,1746225044228,-450.0,0.0001971,2]
[359656975,1746225044237,-450.0,0.0001971,2]
[359656977,1746225044246,-495.29,0.0001971,2]
[359656979,1746225044255,-450.0,0.0001971,2]
[359656981,1746225044264,-1950.39,0.0001971,2]
[359656983,1746225044273,-2274.35,0.0001971,2]
[359656985,1746225044283,-500.0,0.0001971,2]
[359656987,1746225044292,-450.0,0.0001971,2]
[359656989,1746225044301,-450.0,0.0001971,2]
[359656991,1746225044310,-450.0,0.0001971,2]
[359656993,1746225044320,-450.0,0.0001971,2]
[359656995,1746225044329,-450.0,0.0001971,2]
[359656997,1746225044338,-17088.94,0.0001971,2]
[359656999,1746225044348,-450.0,0.0001971,2]
[359657001,1746225044357,-450.0,0.0001971,2]
[359657003,1746225044367,-450.0,0.0001971,2]
[359657005,1746225044376,-725.16,0.0001971,2]
[359657007,1746225044386,-530.14,0.0001971,2]
[359657008,1746225044396,-450.0,0.0001971,2]
[359657010,1746225044405,-450.0,0.0001971,2]
[359657012,1746225044414,-586.18,0.0001971,2]
[359657014,1746225044423,-450.0,0.0001971,2]
[359657016,1746225044433,-450.0,0.0001971,2]
[359657018,1746225044442,-1560.92,0.0001971,2]
[359657021,1746225044452,-450.0,0.0001971,2]
[359657023,1746225044464,-450.0,0.0001971,2]
[359657025,1746225044474,-450.0,0.0001971,2]
[359657026,1746225044483,-450.0,0.0001971,2]
[359657028,1746225044493,-450.0,0.0001971,2]
[359657030,1746225044502,-716.74,0.0001971,2]
[359657032,1746225044511,-450.0,0.0001971,2]
[359657034,1746225044520,-1872.19,0.0001971,2]
[359657036,1746225044530,-450.0,0.0001971,2]
[359657038,1746225044539,-2655.48,0.0001971,2]
[359657040,1746225044548,-544.29,0.0001971,2]
[359657042,1746225044557,-450.0,0.0001971,2]
[359657044,1746225044567,-450.0,0.0001971,2]
[359657046,1746225044576,-551.38,0.0001971,2]
[359657048,1746225044585,-740.67,0.0001971,2]
[359657050,1746225044594,-3232.6,0.0001971,2]
[359657052,1746225044604,-450.0,0.0001971,2]
[359657053,1746225044613,-450.0,0.0001971,2]
[359657054,1746225044623,-450.0,0.0001971,2]
[359657055,1746225044632,-450.0,0.0001971,2]
[359657056,1746225044642,-450.0,0.0001971,2]
[359657057,1746225044651,-464.15,0.0001971,2]
[359657058,1746225044662,-301.18044399,0.0001971,2]
[359657059,1746225044671,-450.0,0.0001971,2]
[359657060,1746225044681,-500.59,0.0001971,2]
[359657061,1746225044690,-402.27436238,0.0001971,2]
[359657062,1746225044699,-1126.54,0.0001971,2]
[359657063,1746225044709,-450.0,0.0001971,2]
[359657064,1746225044718,-450.0,0.0001971,2]
[359657065,1746225044729,-760.55,0.0001971,2]
[359657066,1746225044739,-450.0,0.0001971,2]
[359657067,1746225044749,-1444.96,0.0001971,2]
[359657068,1746225044758,-450.0,0.0001971,2]
[359657069,1746225044767,-520.92,0.0001971,2]
[359657070,1746225044776,-592.21,0.0001971,2]
[359657071,1746225044786,-522.45,0.0001971,2]
[359657072,1746225044795,-450.0,0.0001971,2]
[359657073,1746225044804,-912.86,0.0001971,2]
[359657074,1746225044814,-450.0,0.0001971,2]
[359657075,1746225044822,-1147.3,0.0001971,2]
[359657076,1746225044831,-450.0,0.0001971,2]
[359657077,1746225044840,-450.0,0.0001971,2]
[359657078,1746225044849,-450.0,0.0001971,2]
[359657079,1746225044859,-450.0,0.0001971,2]
[359657080,1746225044869,-450.0,0.0001971,2]
[359657081,1746225044879,-789.27,0.0001971,2]
[359657082,1746225044888,-450.0,0.00019711,2]
[359657083,1746225044897,-450.0,0.00019711,2]
[359657084,1746225044906,-450.0,0.00019711,2]
[359657085,1746225044915,-450.0,0.00019711,2]
[359657086,1746225044925,-450.0,0.00019711,2]
[359657087,1746225044934,-450.0,0.00019711,2]
[359657088,1746225044943,-636.02,0.00019711,2]
[359657089,1746225044952,-715.98,0.00019711,2]
[359657090,1746225044962,-511.18,0.00019711,2]
[359657091,1746225044971,-526.89,0.00019711,2]
[359657092,1746225044980,-450.0,0.00019711,2]
[359657093,1746225044989,-1086.35,0.00019711,2]
[359657094,1746225044999,-450.0,0.00019711,2]
[359657095,1746225045008,-592.77,0.00019711,2]
[359657096,1746225045018,-1535.85,0.00019711,2]
[359657097,1746225045027,-735.44,0.00019711,2]
[359657098,1746225045036,-450.0,0.00019711,2]
[359657099,1746225045046,-520.65,0.00019711,2]
[359657100,1746225045055,-560.49,0.00019711,2]
[359657101,1746225045065,-450.0,0.00019711,2]
[359657102,1746225045075,-629.92,0.00019711,2]
[359657103,1746225045083,-1759.0,0.00019711,2]
[359657104,1746225045092,-603.9,0.00019711,2]
[359657105,1746225045102,-779.58,0.00019711,2]
[359657106,1746225045112,-450.0,0.00019711,2]
[359657107,1746225045121,-932.54,0.00019711,2]
[359657108,1746225045130,-450.0,0.00019711,2]
[359657109,1746225045140,-1172.17,0.00019711,2]
[359657110,1746225045150,-458.77,0.00019711,2]
[359657111,1746225045159,-568.19,0.00019711,2]
[359657112,1746225045171,-1547.61,0.00019711,2]
[359657113,1746225045180,-637.09,0.00019711,2]
[359657114,1746225045190,-450.0,0.00019711,2]
[359657115,1746225045199,-450.0,0.00019711,2]
[359657116,1746225045208,-450.0,0.00019711,2]
[359657117,1746225045218,-2413.88,0.00019711,2]
[359657118,1746225045227,-1056.31,0.00019711,2]
[359657119,1746225045237,-2208.43,0.00019711,2]
[359657120,1746225045247,-500.0,0.00019711,2]
[359657121,1746225045256,-150.0,0.00019714,2]
[359657122,1746225045266,-500.0,0.00019714,2]
[359657123,1746225045276,-423.0,0.00019714,2]
[359657124,1746225045286,-150.0,0.00019714,2]
[359657125,1746225045295,-500.0,0.00019714,2]
[359657126,1746225045304,-150.0,0.00019714,2]
[359657127,1746225045314,-500.0,0.00019714,2]
[359657128,1746225045324,-150.97981124,0.00019714,2]
[359657129,1746225045333,-500.0,0.00019714,2]
[359657130,1746225045343,-150.0,0.00019714,2]
[359657131,1746225045352,-150.0,0.00019714,2]
[359657132,1746225045361,-437.0,0.00019714,2]
[359657133,1746225045371,-154.54925283,0.00019714,2]
[359657134,1746225045381,-500.0,0.00019714,2]
[359657135,1746225045391,-150.0,0.00019714,2]
[359657136,1746225045400,-500.0,0.00019714,2]
[359657137,1746225045410,-500.0,0.00019714,2]
[359657138,1746225045420,-500.0,0.00019714,2]
[359657139,1746225045431,-155.27013893,0.00019714,2]
[359657140,1746225045443,-500.0,0.00019714,2]
[359657141,1746225045453,-151.09399251,0.00019714,2]
[359657142,1746225045466,-150.96083992,0.00019714,2]
[359657143,1746225045476,-150.0,0.00019714,2]
[359657144,1746225045486,-150.79274051,0.00019714,2]
[359657145,1746225045496,-16080.4130521,0.00019718,2]
[359657146,1746225045507,-155.96257902,0.00019736,2]
[359657147,1746225045517,-5840.32611875,0.00019739,2]
[359657148,1746225045527,-42333.55907963,0.0001975,2]
[359657149,1746225045536,-5840.32611875,0.00019771,2]
[359657150,1746225045547,-368.87036061,0.00019773,2]
[359657151,1746225045559,-500.0,0.00019773,2]
[359657152,1746225045569,-500.0,0.00019773,2]
[359657153,1746225045578,-500.0,0.00019773,2]
[359657154,1746225045588,-500.0,0.00019773,2]
[359657155,1746225045598,-500.0,0.00019773,2]
[359657156,1746225045609,-515.34803,0.00019773,2]
[359657157,1746225045619,-500.0,0.00019773,2]
[359657158,1746225045629,-165.99958587,0.00019773,2]
[359657159,1746225045639,-162.15598987,0.00019773,2]
[359657160,1746225045649,-500.0,0.00019773,2]
[359657161,1746225045658,-500.0,0.00019773,2]
[359657162,1746225045668,-1105.4161288,0.00019799,2]
[359657163,1746225045677,-405.21,0.00019803,2]
[359657164,1746225045687,-12500.0,0.00019803,2]
[359657165,1746225045697,-6720.40142262,0.00019803,2]
[359657166,1746225045706,-5840.32611875,0.00019803,2]
[359657167,1746225045715,-1000.0,0.00019805,2]
[359657168,1746225045726,-150.0,0.00019808,2]
[359657169,1746225045735,-500.0,0.00019808,2]
[359657170,1746225045745,-296.50466061,0.0001981,2]
[359657171,1746225045755,-12500.0,0.00019812,2]
[359657172,1746225045765,-12500.0,0.00019821,2]
[359657173,1746225045775,-6753.0,0.00019827,2]
[359657174,1746225045786,-153.0,0.00019827,2]
[359657175,1746225045796,-12500.0,0.0001983,2]
[359657176,1746225045806,-6720.40142262,0.00019836,2]
[359657177,1746225045816,-5840.32611875,0.00019836,2]
[359657178,1746225045826,-12500.0,0.00019838,2]
[359657179,1746225045835,-2000.0,0.00019839,2]
[359657180,1746225045845,-200.0,0.00019839,2]
[359657181,1746225045855,-500.0,0.0001984,2]
[359657182,1746225045864,-2000.0,0.0001984,2]
[359657183,1746225045875,-2000.0,0.0001984,2]
[359657184,1746225045885,-200.0,0.0001984,2]
[359657185,1746225045895,-12500.0,0.00019847,2]
[359657186,1746225045905,-2605.04967026,0.0001985,2]
[359657187,1746225045915,-12500.0,0.00019856,2]
[359657188,1746225045925,-12500.0,0.00019865,2]
[359657189,1746225045934,-6720.40142262,0.00019868,2]
[359657190,1746225045943,-5840.32611875,0.00019868,2]
[359657191,1746225045952,-12500.0,0.00019874,2]
[359657192,1746225045962,-12500.0,0.00019874,2]
[359657193,1746225045971,-12500.0,0.00019882,2]
[359657194,1746225045982,-12500.0,0.00019882,2]
[359657195,1746225045991,-165.7836071,0.00019884,2]
[359657196,1746225046000,-233.19087666,0.00019885,2]
[359657197,1746225046009,-184.43217753,0.00019886,2]
[359657198,1746225046019,-151.0,0.00019887,2]
[359657199,1746225046028,-151.0,0.00019887,2]
[359657200,1746225046037,-151.0,0.00019887,2]
[359657201,1746225046047,-151.0,0.00019888,2]
[359657202,1746225046057,-151.0,0.00019888,2]
[359657203,1746225046067,-1835.20639891,0.00019889,2]
[359657204,1746225046077,-3251.41085204,0.00019889,2]
[359657205,1746225046087,-165.78360708,0.00019889,2]
[359657206,1746225046097,-12500.0,0.00019891,2]
[359657207,1746225046108,-12500.0,0.00019891,2]
[359657208,1746225046118,-184.43217753,0.00019893,2]
[359657209,1746225046128,-165.78360708,0.00019895,2]
[359657210,1746225046137,-2743.91594593,0.000199,2]
[359657211,1746225046147,-184.43217753,0.000199,2]
[359657212,1746225046157,-12500.0,0.000199,2]
[359657214,1746225046167,-6720.40142262,0.000199,2]
[359657215,1746225046176,-165.78360708,0.000199,2]
[359657216,1746225046186,-28559.79043473,0.000199,2]
[359657217,1746225046195,-3014.72115016,0.000199,3]
[359657218,1746225046205,-12500.0,0.000199,2]
[359657219,1746225046215,-5840.32611875,0.000199,2]
[359657220,1746225046224,-180.12891608,0.000199,3]
[359657221,1746225046235,-495.71971184,0.000199,2]
[359657223,1746225046244,-46660.9550745,0.000199,2]
[359657224,1746225046254,-156.63736674,0.000199,2]
[359657225,1746225046264,-500.0,0.00019918,2]
[359657226,1746225046274,-850.5171201,0.00019924,2]
[359657227,1746225046283,-233.19087662,0.00019931,2]
[359657228,1746225046293,-150.0,0.00019943,2]
[359657229,1746225046303,-150.0,0.00019943,2]
[359657230,1746225046313,-151.0,0.00019943,2]
[359657231,1746225046323,-151.0,0.00019943,2]
[359657232,1746225046333,-920.0,0.00019945,2]
[359657233,1746225046342,-2071.0,0.00019949,2]
[359657234,1746225046352,-914.0,0.00019949,2]
[359657235,1746225046361,-1449.0,0.00019949,2]
[359657236,1746225046372,-550.0,0.00019949,2]
[359657237,1746225046382,-581.0,0.00019949,2]
[359657238,1746225046392,-1391.397,0.00019949,2]
[359657239,1746225046402,-924.0,0.00019949,2]
[359657240,1746225046411,-3695.479,0.00019953,2]
[359657241,1746225046421,-245.714,0.00019953,2]
[359657242,1746225046430,-207.4,0.00019953,2]
[359657243,1746225046440,-151.0,0.00019954,2]
[359657244,1746225046449,-668.65185757,0.00019954,2]
[359657245,1746225046463,-151.0,0.00019954,2]
[359657246,1746225046473,-514.0,0.0001997,2]
[359657247,1746225046482,-24257.0,0.00019973,2]
[359657248,1746225046492,-501.47327578,0.00019973,2]
[359657249,1746225046696,-505.12152298,0.00019973,2]
[359657250,1746225046707,-162.40954813,0.00019973,2]
[359657251,1746225046717,-500.0,0.00019973,2]
[359657252,1746225046727,-500.0,0.00019973,2]
[359657253,1746225046736,-500.0,0.00019973,2]
[359657254,1746225046746,-500.0,0.00019973,2]
[359657255,1746225046755,-500.0,0.00019973,2]
[359657256,1746225046765,-160.1305096,0.00019973,2]
[359657257,1746225046774,-505.11388319,0.00019973,2]
[359657258,1746225046784,-517.08214642,0.00019973,2]
[359657259,1746225046794,-500.0,0.00019973,2]
[359657260,1746225046804,-500.0,0.00019973,2]
[359657261,1746225046814,-500.0,0.00019973,2]
[359657262,1746225046823,-302.52572163,0.00019973,2]
[359657263,1746225046833,-243.25265261,0.00019973,2]
[359657264,1746225046843,-500.0,0.00019973,2]
[359657265,1746225046852,-538.7932649,0.00019973,2]
[359657266,1746225046861,-500.0,0.00019973,2]
[359657267,1746225046871,-500.0,0.00019973,2]
[359657268,1746225046880,-152.56461415,0.00019973,2]
[359657269,1746225046889,-500.0,0.00019973,2]
[359657270,1746225046899,-1074.92705239,0.00019974,2]
[359657271,1746225046908,-233.19087662,0.00019976,2]
[359657272,1746225046917,-36943.72609916,0.0001998,2]
[359657273,1746225046927,-553.47632,0.00019983,2]
[359657274,1746225046937,-782.364215,0.00019983,2]
[359657275,1746225046946,-732.2,0.00019983,2]
[359657276,1746225046956,-450.0,0.00019983,2]
[359657277,1746225046966,-450.0,0.00019983,2]
[359657278,1746225046975,-450.0,0.00019983,2]
[359657279,1746225046984,-450.0,0.00019983,2]
[359657280,1746225046994,-450.0,0.00019983,2]
[359657281,1746225047005,-234.39097713,0.00019983,2]
[359657282,1746225047014,-450.0,0.00019983,2]
[359657283,1746225047024,-450.0,0.00019983,2]
[359657284,1746225047034,-450.0,0.00019983,2]
[359657285,1746225047043,-450.0,0.00019983,2]
[359657286,1746225047053,-450.0,0.00019983,2]
[359657287,1746225047063,-450.0,0.00019983,2]
[359657288,1746225047073,-450.0,0.00019983,2]
[359657289,1746225047083,-450.0,0.00019983,2]
[359657290,1746225047093,-450.0,0.00019983,2]
[359657291,1746225047102,-450.0,0.00019983,2]
[359657292,1746225047112,-453.54,0.00019983,2]
[359657293,1746225047122,-450.0,0.00019983,2]
[359657294,1746225047132,-503.9,0.00019983,2]
[359657295,1746225047141,-450.0,0.00019983,2]
[359657296,1746225047151,-450.0,0.00019983,2]
[359657297,1746225047161,-1028.65,0.00019983,2]
[359657298,1746225047171,-1237.85,0.00019983,2]
[359657299,1746225047181,-5200.0,0.00019983,2]
[359657300,1746225047191,-450.0,0.00019983,2]
[359657301,1746225047200,-450.0,0.00019983,2]
[359657302,1746225047210,-470.05,0.00019983,2]
[359657303,1746225047220,-450.0,0.00019983,2]
[359657304,1746225047229,-450.0,0.00019983,2]
[359657305,1746225047239,-450.0,0.00019983,2]
[359657306,1746225047248,-1173.13,0.00019983,2]
[359657307,1746225047258,-464.23,0.00019983,2]
[359657308,1746225047267,-450.0,0.00019983,2]
[359657309,1746225047277,-450.0,0.00019983,2]
[359657310,1746225047287,-537.72,0.00019983,2]
[359657311,1746225047296,-450.0,0.00019983,2]
[359657312,1746225047306,-1617.6,0.00019983,2]
[359657313,1746225047316,-450.0,0.00019983,2]
[359657314,1746225047326,-529.7,0.00019983,2]
[359657315,1746225047337,-450.0,0.00019983,2]
[359657316,1746225047346,-450.0,0.00019983,2]
[359657317,1746225047356,-1035.38,0.00019983,2]
[359657318,1746225047365,-450.0,0.00019983,2]
[359657319,1746225047375,-450.0,0.00019983,2]
[359657320,1746225047384,-450.0,0.00019983,2]
[359657321,1746225047394,-450.0,0.00019983,2]
[359657322,1746225047404,-450.0,0.00019983,2]
[359657323,1746225047415,-450.0,0.00019983,2]
[359657324,1746225047425,-450.0,0.00019983,2]
[359657325,1746225047435,-1592.28,0.00019983,2]
[359657326,1746225047445,-450.0,0.00019983,2]
[359657327,1746225047459,-450.0,0.00019984,2]
[359657328,1746225047469,-450.0,0.00019984,2]
[359657329,1746225047478,-450.0,0.00019984,2]
[359657330,1746225047488,-450.0,0.00019984,2]
[359657331,1746225047499,-450.0,0.00019984,2]
[359657332,1746225047509,-450.0,0.00019984,2]
[359657333,1746225047519,-450.0,0.00019984,2]
[359657334,1746225047529,-450.0,0.00019984,2]
[359657335,1746225047540,-450.0,0.00019984,2]
[359657336,1746225047552,-450.0,0.00019984,2]
[359657337,1746225047563,-450.0,0.00019984,2]
[359657338,1746225047573,-450.0,0.00019984,2]
[359657339,1746225047584,-450.0,0.00019984,2]
[359657340,1746225047594,-450.0,0.00019984,2]
[359657341,1746225047605,-450.0,0.00019984,2]
[359657342,1746225047614,-450.0,0.00019984,2]
[359657343,1746225047625,-450.0,0.00019984,2]
[359657344,1746225047634,-450.0,0.00019984,2]
[359657345,1746225047644,-450.0,0.00019984,2]
[359657346,1746225047653,-450.0,0.00019984,2]
[359657347,1746225047663,-450.0,0.00019984,2]
[359657348,1746225047673,-450.0,0.00019984,2]
[359657349,1746225047682,-450.0,0.00019984,2]
[359657350,1746225047692,-450.0,0.00019984,2]
[359657351,1746225047701,-573.14,0.00019984,2]
[359657352,1746225047710,-450.0,0.00019984,2]
[359657353,1746225047719,-450.0,0.00019984,2]
[359657354,1746225047729,-450.0,0.00019984,2]
[359657355,1746225047738,-450.0,0.00019984,2]
[359657356,1746225047747,-450.0,0.00019984,2]
[359657357,1746225047757,-450.0,0.00019984,2]
[359657358,1746225047767,-450.0,0.00019984,2]
[359657359,1746225047778,-450.0,0.00019984,2]
[359657360,1746225047787,-450.0,0.00019984,2]
[359657361,1746225047796,-517.18,0.00019984,2]
[359657362,1746225047806,-450.0,0.00019984,2]
[359657363,1746225047815,-450.0,0.00019984,2]
[359657364,1746225047827,-450.0,0.00019984,2]
[359657365,1746225047839,-450.0,0.00019984,2]
[359657366,1746225047848,-450.0,0.00019984,2]
[359657367,1746225047858,-450.0,0.00019984,2]
[359657368,1746225047869,-450.0,0.00019984,2]
[359657369,1746225047879,-450.0,0.00019984,2]
[359657370,1746225047889,-450.0,0.00019984,2]
[359657371,1746225047899,-450.0,0.00019984,2]
[359657372,1746225047909,-450.0,0.00019984,2]
[359657373,1746225047919,-450.0,0.00019984,2]
[359657374,1746225047929,-450.0,0.00019984,2]
[359657375,1746225047942,-450.0,0.00019984,2]
[359657376,1746225047953,-809.96,0.00019984,2]
[359657377,1746225047963,-450.0,0.00019984,2]
[359657378,1746225047972,-508.02824913,0.00019984,2]
[359657379,1746225047982,-450.0,0.00019984,2]
[359657380,1746225047991,-450.0,0.00019984,2]
[359657381,1746225048000,-450.0,0.00019984,2]
[359657382,1746225048010,-450.0,0.00019984,2]
[359657383,1746225048019,-450.0,0.00019984,2]
[359657384,1746225048028,-450.0,0.00019984,2]
[359657385,1746225048038,-450.0,0.00019984,2]
[359657386,1746225048050,-472.31764425,0.00019984,2]
[359657387,1746225048060,-450.0,0.00019984,2]
[359657388,1746225048070,-453.96,0.00019984,2]
[359657389,1746225048080,-450.0,0.00019984,2]
[359657390,1746225048090,-626.07,0.00019984,2]
[359657391,1746225048100,-450.0,0.00019984,2]
[359657392,1746225048110,-450.0,0.00019984,2]
[359657393,1746225048119,-450.0,0.00019984,2]
[359657394,1746225048129,-205.70456391,0.00019984,2]
[359657395,1746225048140,-450.0,0.00019984,2]
[359657396,1746225048150,-648.52,0.00019984,2]
[359657397,1746225048160,-450.0,0.00019984,2]
[359657398,1746225048170,-450.0,0.00019984,2]
[359657399,1746225048179,-450.0,0.00019984,2]
[359657400,1746225048189,-450.0,0.00019984,2]
[359657401,1746225048199,-450.0,0.00019984,2]
[359657402,1746225048208,-454.49,0.00019984,2]
[359657403,1746225048218,-450.0,0.00019984,2]
[359657404,1746225048228,-150.0,0.00019984,2]
[359657405,1746225048239,-579.97,0.00019984,2]
[359657406,1746225048249,-450.0,0.00019984,2]
[359657407,1746225048258,-450.0,0.00019984,2]
[359657408,1746225048269,-460.60661297,0.00019984,2]
[359657409,1746225048279,-450.0,0.00019984,2]
[359657410,1746225048289,-450.0,0.00019984,2]
[359657411,1746225048298,-450.0,0.00019984,2]
[359657412,1746225048308,-450.0,0.00019984,2]
[359657413,1746225048318,-450.0,0.00019984,2]
[359657414,1746225048327,-450.0,0.00019984,2]
[359657415,1746225048337,-450.0,0.00019984,2]
[359657416,1746225048347,-450.0,0.00019984,2]
[359657417,1746225048357,-450.0,0.00019984,2]
[359657418,1746225048367,-450.0,0.00019984,2]
[359657419,1746225048377,-489.46021491,0.00019984,2]